Cogmind - Beta 14 @@@ ROGUE MODE // 2024.11.09 @ 03:30:48 Player: Hinzy Result: Destroyed by OK-JK9(R) with Subdweller Laser Performance ------------- Evolutions (0) 0 Regions Visited (3) 600 Robots Destroyed (13) 65 Value Destroyed (325) 325 Prototype IDs (0) 0 Alien Tech Used (0) 0 Bonus (0) 0 TOTAL SCORE: 990 Bonus ------- None Cogmind --------- Core Integrity 0/250 Matter 300/300 Energy 5/100 System Corruption 0% Temperature Cool (20) Movement Core (50) Location -10/Subcaves Parts ------- > --- POWER (1) -------- (None) > --- PROPULSION (2) --- (None) > --- UTILITY (2) ------ Power Shielding > --- WEAPON (2) ------- (None) > --- INVENTORY (5) ---- Subdweller Power Source Heat Sink Assault Rifle Light Assault Rifle Peak State ------------ > --- POWER ------------ Light Ion Engine > --- PROPULSION ------- Flight Unit Flight Unit > --- UTILITY ---------- Structural Scanner Power Shielding > --- WEAPON ----------- Light Assault Rifle Plasma Flamer > --- INVENTORY -------- Flight Unit Flight Unit Heat Sink Assault Rifle [Rating: 11] Favorites ----------- Power Light Ion Engine Engine Light Ion Engine Propulsion Aluminum Leg Leg Aluminum Leg Flight Unit Flight Unit Utility Structural Scanner Device Structural Scanner Processor Signal Interpreter Protection Power Shielding Weapon Assault Rifle Energy Gun EM Pulse Gun Energy Cannon Beam Cannon Ballistic Gun Assault Rifle Ballistic Cannon Battle Cannon Special Weapon Plasma Flamer Build | -11 -10 -10 -10 ------- Run | Yrd Mat Min Sub Slots Evolved . | . . . . Power . | . . . . Propulsion . | . . . . Utility . | . . . . Weapon . | . . . . Parts Attached 28 | 5 7 11 5 Power 4 | 1 1 2 . Engine 4 | 1 1 2 . Core . | . . . . Reactor . | . . . . Propulsion 8 | 2 1 3 2 Treads . | . . . . Leg 4 | 2 1 1 . Wheel . | . . . . Hover . | . . . . Flight 4 | . . 2 2 Utility 5 | . 3 2 . Device 3 | . 2 1 . Storage . | . . . . Processor 1 | . 1 . . Hackware . | . . . . Protection 1 | . . 1 . Artifact . | . . . . Weapon 11 | 2 2 4 3 Energy Gun 3 | 1 . 1 1 Energy Cannon 1 | . 1 . . Ballistic Gun 4 | 1 1 2 . Ballistic Cannon 1 | . . . 1 Launcher . | . . . . Special Weapon 2 | . . 1 1 Impact Weapon . | . . . . Slashing Weapon . | . . . . Piercing Weapon . | . . . . Special Melee Weapon . | . . . . Unidentified Prototypes . | . . . . Parts Lost 8 | . . 1 7 Power 1 | . . . 1 Propulsion 4 | . . 1 3 Utility 1 | . . . 1 Weapon 2 | . . . 2 Highest Loss Streak 5 | . . 1 5 To Critical Strikes 1 | . . . 1 Average Slot Usage (%) 89 | . 85 96 81 Engine 13 | . 14 14 13 Leg 14 | . 28 10 . Flight 11 | . . 15 22 Device 11 | . 6 14 12 Processor 5 | . 11 3 . Protection 7 | . . 10 14 Energy Gun 5 | . . 9 5 Energy Cannon 1 | . 1 3 . Ballistic Gun 14 | . 21 14 5 Ballistic Cannon 1 | . . . 7 Peak Build Rating 11 | 5 7 11 10 Average Rating 6 | 4 5 6 7 On Entrance 4 | . 5 7 6 Naked Turns . | . . . . Heaviest Build 12 | 6 11 11 12 Greatest Support 20 | 20 20 20 8 Greatest Overweight (x) 1 | . . 1 1 Average Overweight (x) . | . . . . Largest Inventory Capacity 5 | 5 5 5 5 Average Capacity 5 | 5 5 5 5 Most Carried 5 | . 5 5 5 Average Carried 2 | . 2 4 4 Final Capacity 5 | 5 5 5 5 Final Carried 5 | . 4 5 4 Class Distribution -------------------- 76% | Mutant 20% | Derelict-Mutant Dominant Class ---------------- Mutant | -10/Materials Derelict-Mutant | -10/Mines Mutant | -10/Subcaves Resources | -11 -10 -10 -10 ----------- Run | Yrd Mat Min Sub Matter Collected 610 | 262 136 167 45 Remotely . | . . . . Salvage Created 364 | 40 146 165 13 Parts 23 | 1 8 13 1 Haulers Intercepted . | . . . . Recyclers Shooed 1 | . . 1 . Parts Field Recycled . | . . . . Retrieved Matter . | . . . . Parts Self-Destructed . | . . . . Prevented . | . . . . Kills | -11 -10 -10 -10 ------- Run | Yrd Mat Min Sub Combat Hostiles Destroyed 12 | 1 3 7 1 Guns 10 | 1 3 6 . Cannons 2 | . . 1 1 Classes Destroyed 4 | 1 1 1 1 Builder 1 | . 1 . . Swarmer 5 | . . 5 . Grunt 6 | 1 3 2 . Subdweller 1 | . . . 1 Best Kill Streak 3 | 1 3 3 1 Combat Bots Only 3 | 1 2 3 1 Max Kills in Single Turn 1 | 1 1 1 1 Gunslinging . | . . . . Exploded . | . . . . Melee . | . . . . Uniques/NPCs Destroyed . | . . . . Combat | -11 -10 -10 -10 -------- Run | Yrd Mat Min Sub Hostile Shots Fired 104 | 5 18 41 40 Missed 38 | 1 8 8 21 Damage Taken 986 | 47 127 365 447 Core 253 | 24 27 82 120 Absorbed by Shields . | . . . . Redirected to Shielding 23 | . . . 23 Core Remaining (%) 90 | 90 . . . Volleys Fired 50 | 4 18 19 9 Largest 2 | 2 2 2 2 Hottest 100 | 60 40 100 100 Shots Fired 86 | 8 32 35 11 Gun 67 | 8 32 25 2 Cannon 13 | . . 9 4 Launcher . | . . . . Special 6 | . . 1 5 Kinetic 58 | 4 32 18 4 Thermal 21 | 4 . 10 7 Explosive . | . . . . Electromagnetic 7 | . . 7 . Robot Hit Streak 13 | 4 6 13 12 Robot Miss Streak 5 | 1 5 2 1 Penetration Max . | . . . . Secondary Targets . | . . . . Shots Hit Robots 56 | 7 18 21 10 Core Hits 22 | 2 8 10 2 Critical Kills . | . . . . Critical Parts Destroyed 1 | . 1 . . Critical Strikes 1 | . 1 . . Destroy 1 | . 1 . . Melee Attacks . | . . . . Impact . | . . . . Slashing . | . . . . Piercing . | . . . . Sneak Attacks . | . . . . Combat Hostiles . | . . . . Follow-up Attacks . | . . . . Damage Inflicted 813 | 81 250 302 180 Guns 531 | 81 250 162 38 Cannons 214 | . . 140 74 Explosions . | . . . . Melee . | . . . . Ramming . | . . . . Kinetic 494 | 39 250 131 74 Thermal 288 | 42 . 140 106 Explosive . | . . . . Electromagnetic 31 | . . 31 . Impact . | . . . . Slashing . | . . . . Piercing . | . . . . Highest Corruption . | . . . . Average Corruption . | . . . . Corruption Purged . | . . . . Corruption Blocked . | . . . . Overload Shots . | . . . . Overflow Damage . | . . . . Projectiles . | . . . . Explosions . | . . . . Melee . | . . . . Knockbacks . | . . . . Impact . | . . . . Kinetic . | . . . . Secondary . | . . . . Self-Inflicted Damage . | . . . . Shots . | . . . . Rammed . | . . . . Targets Rammed . | . . . . Kicked . | . . . . Crushed . | . . . . Highest Temperature 83 | 24 20 83 24 Average Temperature 33 | 16 6 45 12 Received Heat Transfer 372 | 24 93 165 90 Siege Activations . | . . . . Robots Corrupted . | . . . . Combat Hostiles . | . . . . Parts Fried . | . . . . Impact Corruptions . | . . . . Robots Melted . | . . . . Combat Hostiles . | . . . . Parts Melted 1 | 1 . . . Heat Transferred 846 | 100 . 296 450 Parts Sabotaged . | . . . . Parts Stolen . | . . . . Parts Stripped . | . . . . Power Chain Reactions . | . . . . Alert | -11 -10 -10 -10 ------- Run | Yrd Mat Min Sub Peak Influence 209 | 20 88 209 . Initial 34 | . 13 34 . Average 72 | 14 54 131 . Maximum Alert Level 1 | . . 1 . Low Security (%) 92 | 100 100 80 . Level 1 7 | . . 19 . Level 2 . | . . . . Level 3 . | . . . . Level 4 . | . . . . Level 5 . | . . . . High Security . | . . . . Max Security . | . . . . Squads Dispatched . | . . . . Investigation . | . . . . Extermination . | . . . . Reinforcement . | . . . . Assault . | . . . . Garrison . | . . . . Intercept . | . . . . Searches Triggered . | . . . . Construction Impeded . | . . . . Haulers Reinforced . | . . . . Active Scanning Responses . | . . . . Cargo Convoy Interrupts . | . . . . Stealth | -11 -10 -10 -10 --------- Run | Yrd Mat Min Sub Distress Signals . | . . . . Communications Jammed . | . . . . Distress Signals . | . . . . Times Spotted 21 | 1 3 8 9 Peak Tracking Total 6 | 1 2 3 6 Tactical Retreats 1 | . . . 1 Traps | -11 -10 -10 -10 ------- Run | Yrd Mat Min Sub Traps Triggered . | . . . . Indirectly . | . . . . Trap Hack Attempts . | . . . . Triggered . | . . . . Disarmed . | . . . . Reprogrammed . | . . . . Reused . | . . . . Traps Extracted . | . . . . Installed . | . . . . Triggered . | . . . . Machines | -11 -10 -10 -10 ---------- Run | Yrd Mat Min Sub Machines Disabled . | . . . . Max in Single Turn . | . . . . Machines Repaired . | . . . . Machines Dismantled . | . . . . Machines Sabotaged . | . . . . Overloaded Fab Kills . | . . . . Hacking | -11 -10 -10 -10 --------- Run | Yrd Mat Min Sub Machines Accessed 2 | . 2 . . Terminals 1 | . 1 . . Fabricators . | . . . . Repair Stations . | . . . . Recycling Units 1 | . 1 . . Scanalyzers . | . . . . Garrison Access . | . . . . Total Hacks 5 | . 5 . . Successful 5 | . 5 . . Failed . | . . . . Catastrophic . | . . . . Database Lockouts . | . . . . Manual . | . . . . Terminals 2 | . 2 . . Fabricators . | . . . . Repair Stations . | . . . . Recycling Units 3 | . 3 . . Scanalyzers . | . . . . Garrison Access . | . . . . Terminal Hacks 2 | . 2 . . Maintenance Status 1 | . 1 . . Zone Layout 1 | . 1 . . Fabricator Hacks . | . . . . Repair Station Hacks . | . . . . Recycling Unit Hacks 3 | . 3 . . Recycle Component 1 | . 1 . . Report Inventory 1 | . 1 . . Retrieve Components 1 | . 1 . . Scanalyzer . | . . . . Garrison Access Hacks . | . . . . Unauthorized Hacks . | . . . . Terminals . | . . . . Fabricators . | . . . . Repair Stations . | . . . . Recycling Units . | . . . . Scanalyzers . | . . . . Garrison Access . | . . . . Data Cores Recovered . | . . . . Used . | . . . . Hacking Detections 2 | . 2 . . Full Trace Events 1 | . 1 . . Feedback Events . | . . . . Feedback Blocked . | . . . . Robot Schematics Acquired . | . . . . Robots Built . | . . . . Authchips . | . . . . Time . | . . . . Total Robot Build Rating . | . . . . Part Schematics Acquired . | . . . . Parts Built . | . . . . Authchips . | . . . . Time . | . . . . Total Part Build Rating . | . . . . Parts Repaired . | . . . . Time . | . . . . Parts Recycled 1 | . 1 . . Recycled Matter . | . . . . Retrieved Matter . | . . . . Retrieved Components 1 | . 1 . . Parts Scanalyzed . | . . . . Part Schematics Acquired . | . . . . Parts Damaged . | . . . . Bothacking | -11 -10 -10 -10 ------------ Run | Yrd Mat Min Sub Used RIF Installer . | . . . . Robots Hacked . | . . . . Non-combat . | . . . . Combat . | . . . . Robot Hacks Applied . | . . . . Relay Couplers Released . | . . . . Fabnet Peak Effective % . | . . . . Robots Rewired . | . . . . Allies Hacked . | . . . . Hacks Repelled . | . . . . Allies | -11 -10 -10 -10 -------- Run | Yrd Mat Min Sub Total Allies . | . . . . Largest Group . | . . . . Highest-Rated Group . | . . . . Highest-Rated Ally . | . . . . Total Orders . | . . . . Ally Attacks . | . . . . Total Damage . | . . . . Kills . | . . . . Allies Corrupted . | . . . . Allies Melted . | . . . . Intel | -11 -10 -10 -10 ------- Run | Yrd Mat Min Sub Robot Analysis Total . | . . . . Derelict Logs Recovered 3 | . . 2 1 Drone Launches . | . . . . Drone Recoveries . | . . . . Exploration | -11 -10 -10 -10 ------------- Run | Yrd Mat Min Sub Turns Passed 1093 | 291 273 365 164 Spaces Moved 852 | 86 166 404 196 Core 14 | 14 . . . Treads . | . . . . Legs 319 | 72 166 81 . Wheels . | . . . . Hover . | . . . . Flight 519 | . . 323 196 Fastest Speed 37 | 50 120 37 37 Average Speed 75 | 108 120 56 64 Slowest Speed 190 | 120 120 190 120 Overloaded Moves . | . . . . Propulsion Burnouts . | . . . . Robots Hopped 4 | . . 4 . Cave-ins Triggered . | . . . . Exploration Rate (%) 28 | 7 22 68 17 Regions Visited 3 Branch Regions 2 Pre-discovered Areas 1 | . . 1 . Known Exits Taken 1 | . 1 . . Unknown Exits Taken 2 | 1 . 1 . Scrap Searched 4 | . . 1 3 Spaces Dug . | . . . . Terrain Destroyed . | . . . . Melee . | . . . . Projectile . | . . . . AOE . | . . . . Terrain Rammed . | . . . . Walls Destroyed . | . . . . Machines Disabled . | . . . . Actions | -11 -10 -10 -10 --------- Run | Yrd Mat Min Sub Total 1208 | 273 207 507 221 Wait 252 | 179 11 55 7 Move 843 | 85 165 397 196 Hop 2 | . . 2 . Pick Up 11 | . 2 8 1 Fast Attach 14 | 5 4 3 2 Attach 7 | . 1 4 2 Detach 8 | . 3 4 1 Swap 7 | . 2 4 1 Drop 14 | . 1 11 2 Fire 50 | 4 18 19 9 Melee . | . . . . Ram . | . . . . Kick . | . . . . Crush . | . . . . Escape Stasis . | . . . . Rewire . | . . . . Trap . | . . . . Miscellaneous . | . . . . Route ------- -11/Scrapyard -10/Materials -10/Mines (discovered 3 exits: [*Mat x2] / [*Sub]) -10/Subcaves History --------- Turn | Location | Event 2 | -11/Scrapyard | Met Revision 17 64 | -11/Scrapyard | Discovered new exit (range 8) 292 | -11/Scrapyard | Entered Materials 315 | -10/Materials | Discovered new exit (range 15) 332 | -10/Materials | Build established: Mutant 556 | -10/Materials | Identified exit to Mines 565 | -10/Materials | Entered Mines 636 | -10/Mines | Found DCF Scrap (10 items) 695 | -10/Mines | A weapon hastily lodged in a ceiling crevice suddenly fell to the ground 751 | -10/Mines | Discovered new exit (range 10) 787 | -10/Mines | Discovered new exit (range 12) 789 | -10/Mines | Learned location of Storage (-7) 859 | -10/Mines | Core integrity fell below 50% 870 | -10/Mines | Learned 2 Materials zone layouts 872 | -10/Mines | Discovered new exit (range 11) 930 | -10/Mines | Entered Subcaves 951 | -10/Subcaves | Ambushed by swarm of Subdwellers 956 | -10/Subcaves | Learned 8 Materials zone layouts 961 | -10/Subcaves | Shifting Twisted Machinery released Mak. Flight Unit 1084 | -10/Subcaves | Core integrity fell below 20% 1094 | -10/Subcaves | Destroyed by OK-JK9(R) with Subdweller Laser Last Messages --------------- 00985_ Found Sub. Laser. 00985_ Found 47 Matter. 00986_ Acquired 25 matter. 00987_ Acquired Sub. Laser. 00988_ Acquired 10 matter. 00992_ Acquired Sub. Power Source. 01002_ Searching scrap... 01002_ Found Battle Cannon. 01002_ Found 68 Matter. 01005_ Acquired Battle Cannon. 01006_ Acquired 10 matter. 01042_ Flight Unit destroyed. 01042_ Dropped Sub. Laser. 01076_ Structural Scanner destroyed. 01080_ Critical hit (Destroy). 01080_ Battle Cannon destroyed. 01082_ Lgt. Ion Engine destroyed. 01088_ SP-6XE(R) destroyed. 01089_ Flight Unit destroyed. 01093_ Plasma Flamer destroyed. Map ----- +----------------------------------------------------+ | ?????????????????????????????????????????????????? | | ?????????????????????????????????????????????????? | | ?????????????????????????????????????????????????? | | ?????????????????????????????????????????????????? | | ?????????????????????????########????????????????? | | ?????????????????????????########????????????????? | | ????????????????????????? # ???????????????? | | ??????????????????????????? ##???????????????? | | ????????????????????????? "## "##""###?????????? | | ?????????????????????????####" "########????????? | | ?????????????????????## ?## " ## #########??? | | ?????????????????????## ########### | | ?????????????????????## ##### ## # ##### | | ?????????????????????## ### | | ?????????????????????????## | | ?????????????????????????###? ### # ## | | ????????????????????????######### ##### | | ????????????????????????######### ##### ## # | | ????????????????????????## # ### ######### # | | ????????????????????????### ######## # | | ????????????????????????### # ## ###???## | | ????????????????????????## ###########???## | | ????????????????????????### ##################### | | ????????????????????? ### ##???????########### | | ?????????????????????###### ##???????##""" "### | | ?????????????????????##& @R ##???????## ""^ "### | | ???????????## ? %=%! RR ##???????"# ##% "## | | ???????????## R*! ; #?????? #+##% "## | | ???????????## %%## ;# ## ###?????????##" # | | ??????????? ?############??????????#### #" | | ???????????? ????###########??????????### #" | | ???????????? ????????????????????????????## | | ?????????????????????????????????????????### | | ?????????????????????????????????????????### #"" | | ?????????????????????????????????????????## ### | | ???????????????????????????????????????#### "## | | ???????????????????????????????????????#### ""### | | ???????????????????????????????????????## %"##### | | ???????????????????????????????????????######## | | ???????????????????????????????????????######## | | ?????????????????????????????????????????????##### | | ?????????????????????????????????????????????##### | | ???????????????????????????????????????????????### | | ??????????????????????????????????????????????#### | | ??????????????????????????????????????????????### | | ??????????????????????????????????????????????## | | ??????????????????????????????????????????????#### | | ??????????????????????????????????????????????#### | | ????????????????????????????????????????????????## | | ???????????????????????????????????????????????### | +----------------------------------------------------+ Best States ------------- Heat Dissipation 35 Energy Generation 10 Energy Capacity 250 Matter Stores 300 Matter Capacity 300 Sight Range 16 Terrain Scan Density 10 Power Shielding 33 Evasion (%) 62 Item Schematics ----------------- None Robot Schematics ------------------ None Fabricated ------------ Nothing Alien Tech Used ----------------- None Achievements -------------- Cya! Challenges ------------ None Game ------ Seed DisruptorCloakDissipator Manual? 0 Play Time 00:29:36 Cumulative 5.8 hours Start 2024.11.09 @ 03:00:26 End 2024.11.09 @ 03:30:48 Sessions 1 Manual Loads 0 Difficulty Rogue Special Mode None Game No. 3 Rogue 3 Adventurer 0 Explorer 0 Win Type - Total 0 Types 0/0/0/0/0/0/0/0/0 Lore% 6 Gallery% 9 Achievement% 8 Wizard Run 0 Options --------- Layout 1 ASCII 0 Keyboard 1 Movement Numpad Keybinds 0 Fullscreen 1 Font 24/Proggy Map View 50x35 Zoom Use 0% Tactical HUD 1 Map Filters NONE Filters NONE Steam 1 RUN: 7ea23cd5-b1ee-4bfe-9647-b79c261879a6